[Event "44th Chess Olympiad Women 2022"]
[Site "Chennai"]
[Date "2022.08.07"]
[Round "9.35"]
[White "Selkirk, Rebecca"]
[Black "Silva, Mariana Sofia T."]
[Result "0-1"]
[ECO "B13"]
[WhiteElo "1745"]
[BlackElo "1912"]
[Annotator "TA"]
[PlyCount "78"]
[EventDate "2022.07.29"]
[EventType "team-tourn"]
[EventCountry "IND"]
[SourceTitle "playchess.com"]
[Source "ChessBase"]
[SourceQuality "1"]
[WhiteTeam "South Africa"]
[BlackTeam "Portugal"]
[WhiteTeamCountry "RSA"]
[BlackTeamCountry "POR"]
[TimeControl "40/5400+30:1800+30"]

{[%evp 14,78,14,0,0,-47,-39,-27,-18,-38,-29,-39,-43,-51,-54,-72,-77,-76,-66,-79,-81,-79,-71,-79,13,12,11,0,34,7,42,-73,-73,-103,-40,-27,-20,-29,-29,-19,-14,-33,0,0,0,-66,0,-332,-342,-339,-327,-310,-186,-618,-618,-29986,-29987,-29981,-29981,-29988,-29989,-29993,-29994,-29994,-29995,-29995,-29996]} 1. e4 {[%emt 0:00:03]} c6 {[%emt 0:00:06]} 2. d4 {[%emt 0:00:09]} d5 {[%emt 0:00:04]} 3. exd5 {[%emt 0:00:05]} cxd5 {[%emt 0:00:08]} 4. c4 {[%emt 0:00:06]} Nf6 {[%emt 0:00:06]} 5. Nc3 {[%emt 0:00:12]} Nc6 {[%emt 0:00:06]} 6. Bg5 {[%emt 0:00:08]} dxc4 {[%emt 0:00:13]} 7. d5 {[%emt 0:00:16]} Ne5 {[%emt 0:00:06]} 8. Qd4 {[%emt 0:00:10]} h6 {[%emt 0:00:09] B13: Caro-Kann: Exchange Variation and Panov-Botvinnik Attack.} 9. Qxe5 {[%emt 0:15:36]} (9. Bf4 $11 Nd3+ 10. Bxd3 cxd3 11. Qxd3) 9... hxg5 $15 {[%emt 0:00:07]} 10. Bxc4 {[%emt 0:00:14]} g4 {[%emt 0:00:16] Black has an edge.} 11. Nge2 {[%emt 0:02:50] [#] And now Nb5 would win.} Qd6 $146 {[%emt 0:17:04]} ({Predecessor:} 11... Rh5 12. Qd4 a6 13. Ng3 Rh6 14. O-O Qd6 15. Rfe1 Bd7 16. Rac1 g6 17. Bb3 Rh7 {0-1 (37) Hannes,D (2116)-Kulovana,E (2300) Germany 2011}) 12. Qxd6 {[%emt 0:09:29]} exd6 {[%emt 0:03:14]} 13. Nd4 {[%emt 0:00:41]} Bd7 {[%emt 0:11:36]} 14. Bb5 {[%emt 0:02:07]} Rc8 {[%emt 0:06:11]} 15. O-O {[%emt 0:04:24]} Bxb5 {[%emt 0:01:25]} 16. Ndxb5 {[%emt 0:00:53] Pair of Knights!} a6 {[%emt 0:00:46]} 17. Nd4 {[%emt 0:00:22]} g6 {[%emt 0:03:10]} 18. f3 {[%emt 0:02:03]} g3 {[%emt 0:04:41]} (18... Bg7 $17) 19. hxg3 $11 {[%emt 0:02:54]} Bg7 {[%emt 0:01:15][%cal Of6d5]} 20. Nde2 {[%emt 0:01:06]} Kd7 {[%emt 0:09:40]} 21. g4 {[%emt 0:02:40]} Rce8 {[%emt 0:02:15][%cal Of6d5]} 22. g5 {[%emt 0:13:12] [#]} (22. Kf2 $14) 22... Nxd5 $1 $17 {[%emt 0:05:16]} 23. Ne4 {[%emt 0:03:19]} (23. Kf2 Bxc3) 23... f5 {[%emt 0:09:25]} ({But not} 23... Bxb2 $6 24. Rab1 Ba3 25. Rxb7+ Nc7 26. Kf2 $11) (23... Ne3 $17 24. Rf2 Rh4) 24. gxf6 $1 $15 {[%emt 0:01:48]} Nxf6 {[%emt 0:00:11]} 25. N4c3 {[%emt 0:01:05]} b5 {[%emt 0:06:40] aiming for ...Bh6.} 26. a3 {[%emt 0:00:59] [#]} Nd5 $1 {[%emt 0:00:36][%cal Bf6d5,Bd5b6,Bb6c4,Bc4e3][%mdl 32] Threatens to win with ...Nxc3.} 27. Rfd1 {[%emt 0:03:41]} Nb6 {[%emt 0:09:40]} (27... Bxc3 $5 28. Nxc3 Nxc3 29. bxc3 Re3 $15) 28. Rd3 {[%emt 0:02:17]} Nc4 $36 {[%emt 0:02:46][%mdl 2048] Black has good play.} 29. Rad1 {[%emt 0:10:42] [#]} ({White should play} 29. Ra2 $1 $11) 29... Re3 {[%emt 0:01:23] Black is more active.} (29... Rxe2 $1 $15 30. Nxe2 Bxb2) 30. Ne4 $2 {[%emt 0:02:47][%mdl 8192]} Rxe2 $19 {[%emt 0:02:18]} 31. b3 {[%emt 0:00:10]} Ne3 {[%emt 0:02:00][%csl Ge3][%cal Re2g2]} ({Stronger than} 31... Nxa3 32. Rxd6+ Kc8 33. Rxa6 $11) 32. Rxd6+ {[%emt 0:01:07]} Kc8 {[%emt 0:01:32][%csl Ge3][%cal Re2g2]} 33. Rc1+ $2 {[%emt 0:01:11]} (33. R1d2 Rxd2 34. Nxd2) 33... Kb8 {[%emt 0:00:35][%csl Ge3][%cal Re2g2]} 34. Rb6+ {[%emt 0:03:19]} Ka7 {[%emt 0:00:05][%csl Ge3][%cal Re2g2] Black mates.} 35. Rxg6 {[%emt 0:00:11]} Be5 {[%emt 0:00:58]} 36. f4 {[%emt 0:01:03]} Bxf4 {[%emt 0:00:16]} 37. Nf2 {[%emt 0:01:40]} Bh2+ {[%emt 0:00:07]} 38. Kh1 {[%emt 0:00:02]} Rxf2 {[%emt 0:01:32]} 39. Rg7+ {[%emt 0:00:27]} Kb8 {[%emt 0:00:39] Weighted Error Value: White=0.69/Black=0.20 (precise)} 0-1

[Event "44th Chess Olympiad Women 2022"]
[Site "Chennai"]
[Date "2022.08.07"]
[Round "9.41"]
[White "Shabanaj, Eglantina"]
[Black "Chung Hurtado, Yaleika"]
[Result "1-0"]
[ECO "D30"]
[WhiteElo "1940"]
[BlackElo "1696"]
[Annotator "TA"]
[PlyCount "57"]
[EventDate "2022.07.29"]
[EventType "team-tourn"]
[EventCountry "IND"]
[SourceTitle "playchess.com"]
[Source "ChessBase"]
[SourceQuality "1"]
[WhiteTeam "Albania"]
[BlackTeam "Panama"]
[WhiteTeamCountry "ALB"]
[BlackTeamCountry "PAN"]
[TimeControl "40/5400+30:1800+30"]

{[%evp 9,57,16,38,30,68,36,61,58,75,56,54,52,54,50,97,97,121,92,89,72,93,75,76,47,66,45,115,118,156,125,169,112,116,133,135,132,232,240,199,198,270,273,876,205,1414,1481,2201,2186,1809,1533]} 1. Nf3 {[%emt 0:00:01]} Nf6 {[%emt 0:00:13]} 2. d4 {[%emt 0:00:10]} e6 {[%emt 0:00:12]} 3. c4 {[%emt 0:00:23]} d5 {[%emt 0:00:49]} 4. Qc2 {[%emt 0:00:08]} c6 {[%emt 0:00:38]} 5. Bf4 {[%emt 0:01:49]} Bb4+ {[%emt 0:02:34]} 6. Nbd2 {[%emt 0:04:03] D30: Queen's Gambit Declined: Systems without Nc3.} Ne4 {[%emt 0:02:01][%cal Oe6e5]} 7. a3 {[%emt 0:02:47] [#]} Bd6 $146 {[%emt 0:09:28]} ({Predecessor:} 7... Nxd2 8. Nxd2 Be7 9. e3 Nd7 10. cxd5 exd5 11. Bd3 Nf6 12. h3 a5 13. O-O O-O {½-½ (28) Elliott,W (2200)-Pitterson,J (2252) Kingston 2000}) 8. Bxd6 {[%emt 0:01:09] White is slightly better.} Nxd6 {[%emt 0:00:03]} 9. e4 {[%emt 0:02:27]} Nxe4 {[%emt 0:00:45]} 10. Nxe4 {[%emt 0:00:11]} dxe4 {[%emt 0:00:07]} 11. Qxe4 {[%emt 0:00:07]} Qf6 {[%emt 0:03:28]} (11... Nd7 $14 {feels stronger.}) 12. Bd3 $16 {[%emt 0:04:45]} g6 {[%emt 0:04:50]} 13. O-O {[%emt 0:03:42]} O-O {[%emt 0:02:45]} 14. Rfe1 {[%emt 0:03:26]} Nd7 {[%emt 0:00:44]} 15. h4 {[%emt 0:02:08]} c5 {[%emt 0:07:58]} 16. b4 {[%emt 0:07:18]} cxd4 {[%emt 0:05:30]} 17. Nxd4 {[%emt 0:03:18]} Rb8 {[%emt 0:00:05]} (17... a5 $14) 18. c5 {[%emt 0:02:30]} a6 {[%emt 0:05:40] Against Nb5} 19. Rad1 {[%emt 0:03:10] White is much more active. The black rooks are badly placed.} Rd8 {[%emt 0:01:02][%cal Od7c5]} 20. Bb1 {[%emt 0:01:53]} (20. Nf3 $18) 20... Nf8 {[%emt 0:04:48]} 21. Nf3 {[%emt 0:04:10][%cal Bd4f3,Bf3e5,Be5g4,Bg4f6,Bf6h5][%mdl 32]} Bd7 {[%emt 0:00:32]} 22. Ne5 $1 {[%emt 0:02:55] Prevents Bc6.} Ba4 {[%emt 0:02:09] [#]} (22... h5 $16 {might work better.} 23. g3 Kg7) 23. Rxd8 $1 $18 {[%emt 0:01:06]} Qxd8 {[%emt 0:00:23] [#]} 24. Qf4 {[%emt 0:00:25] Inhibits Qf6.} Be8 {[%emt 0:07:57]} (24... Qc7 $142 25. h5 Be8 26. Nxg6 Qxf4 27. Nxf4 Bb5) 25. Ng4 {[%emt 0:02:25] aiming for Qe5.} Rc8 $2 {[%emt 0:11:58]} (25... h5) 26. h5 $2 $40 {[%emt 0:03:51][%mdl 128] White has strong attack.} (26. Qe5 {[%cal Rg4h6]} f6 27. Nxf6+ Kf7 28. Ng4) 26... gxh5 $2 {[%emt 0:04:55]} (26... f5) 27. Nf6+ {[%emt 0:00:39] White is clearly winning.} Kg7 {[%emt 0:00:53]} 28. Nxh5+ {[%emt 0:00:21]} Kg8 {[%emt 0:00:07]} 29. Qh6 {[%emt 0:00:41] Weighted Error Value: White=0.46/Black=0.31} 1-0

[Event "44th Chess Olympiad Women 2022"]
[Site "Chennai"]
[Date "2022.08.07"]
[Round "9.41"]
[White "Munoz Henriquez, Alba Esther"]
[Black "Gjergji, Rozana"]
[Result "0-1"]
[ECO "C71"]
[WhiteElo "1588"]
[BlackElo "1920"]
[Annotator "TA"]
[PlyCount "118"]
[EventDate "2022.07.29"]
[EventType "team-tourn"]
[EventCountry "IND"]
[SourceTitle "playchess.com"]
[Source "ChessBase"]
[SourceQuality "1"]
[WhiteTeam "Panama"]
[BlackTeam "Albania"]
[WhiteTeamCountry "PAN"]
[BlackTeamCountry "ALB"]
[TimeControl "40/5400+30:1800+30"]

{[%evp 14,118,2,-189,-197,-205,-205,-203,-203,-203,-212,-209,-199,-201,-202,-202,-209,-186,-201,-232,-217,-253,-241,-248,-243,-263,-249,-233,-239,-297,-228,-256,-218,-234,-238,-258,-258,-254,-258,-268,-144,-152,-156,-154,-145,-176,-168,-206,-205,-263,-261,-341,-254,-268,-272,-256,-260,-263,-264,-269,-264,-273,-157,-209,-152,-152,-147,-274,-267,-333,-325,-324,-319,-284,-134,-464,-450,-952,-879,-29962,-29958,-29972,-29974,-29976,-29969,-29978,-29977,-29977,-29978,-29978,-29979,-29979,-29978,-29979,-29979,-29981,-29978,-29978,-29979,-29979,-29980,-29980,-29981,-29981,-29982,-29982,-29983]} 1. e4 {[%emt 0:00:03]} e5 {[%emt 0:00:06]} 2. Nf3 {[%emt 0:00:06]} Nc6 {[%emt 0:00:07]} 3. Bb5 {[%emt 0:00:06]} a6 {[%emt 0:00:09]} 4. Ba4 {[%emt 0:00:07]} d6 {[%emt 0:01:04]} 5. d4 {[%emt 0:00:37]} b5 {[%emt 0:00:44]} 6. Bb3 {[%emt 0:00:07]} Nxd4 {[%emt 0:00:30]} 7. Nxd4 {[%emt 0:00:13]} exd4 {[%emt 0:00:02]} 8. Qxd4 $2 {[%emt 0:00:14]} (8. a4 $11 {and White stays safe.}) 8... c5 $1 $19 {[%emt 0:00:13] C71: Ruy Lopez: Deferred Steinitz Variation, sidelines.} 9. Qd5 {[%emt 0:00:27][%csl Gb3][%cal Rd5f7]} Be6 {[%emt 0:00:36]} 10. Qc6+ {[%emt 0:01:05]} Bd7 {[%emt 0:00:15] Black is clearly better.} 11. Qd5 {[%emt 0:00:39][%csl Gb3][%cal Rd5f7]} c4 {[%emt 0:00:11]} 12. Bxc4 {[%emt 0:00:30]} bxc4 {[%emt 0:00:07]} 13. Qxc4 {[%emt 0:00:14]} Nf6 {[%emt 0:01:49][%cal Od6d5]} 14. Nc3 {[%emt 0:01:18]} Be7 {[%emt 0:05:54]} 15. O-O {[%emt 0:00:12]} O-O {[%emt 0:00:33]} 16. Re1 {[%emt 0:02:40]} Qb6 {[%emt 0:01:58] [#]} 17. a4 $146 {[%emt 0:07:28]} ({Predecessor:} 17. h3 Rfd8 18. b3 Qc5 19. Qxc5 dxc5 20. e5 Ne8 21. Nd5 {½-½ (63) Kokkori,D-Korou,L Athens 1993}) 17... Rac8 {[%emt 0:03:50]} (17... Ng4 $2 18. Qe2 $19) 18. Qd3 {[%emt 0:01:53]} Rfe8 {[%emt 0:04:34][%cal Od6d5]} 19. h3 {[%emt 0:05:42]} Bc6 {[%emt 0:02:53]} 20. Be3 {[%emt 0:06:37]} Qb7 {[%emt 0:00:47][%cal Rf6e4]} (20... Qxb2 21. Rab1 (21. Reb1 Bxe4 22. Nxe4 Qxc2 $15) 21... Qa3 22. Rb3 Bxe4 23. Nxe4 Qxa4 24. Nxd6 Bxd6 25. Qxd6 $11) 21. f3 {[%emt 0:09:44]} Nd7 {[%emt 0:07:30]} (21... Qxb2 22. Rab1 (22. Reb1 Bxe4 23. Nxe4 Qxc2 $17) 22... Bxe4 23. Nxe4 Qxc2 24. Qxc2 Rxc2 25. Bg5 $11) 22. Bd4 {[%emt 0:09:01]} Bf6 {[%emt 0:06:44]} ({Don't play} 22... Qxb2 23. Reb1 Qxa1 24. Rxa1 $18) 23. b3 {[%emt 0:15:24]} Qb4 {[%emt 0:10:44]} 24. Ne2 {[%emt 0:00:00]} d5 {[%emt 0:04:59][%cal Rd5e4]} 25. Bxf6 {[%emt 0:01:42]} Nxf6 {[%emt 0:09:51]} ({Worse is} 25... gxf6 26. exd5 Qc5+ 27. Kf1 $17) 26. exd5 {[%emt 0:11:20]} Qb6+ {[%emt 0:00:00]} ({Don't go for} 26... Bxd5 $2 27. Rad1 $19) (26... Nxd5 $19 27. Qd4 Rcd8) 27. Qd4 $17 {[%emt 0:06:12]} Nxd5 {[%emt 0:00:00][%cal Oe8e2,Bf6d5,Bd5b6,Bb6d7,Bd7c5][%mdl 32]} 28. Qxb6 {[%emt 0:00:54]} Nxb6 {[%emt 0:00:00]} 29. c4 {[%emt 0:01:51]} Kf8 {[%emt 0:00:00]} 30. Kf2 {[%emt 0:01:32]} Nd7 {[%emt 0:00:00]} 31. Nd4 {[%emt 0:06:22]} Nc5 $1 {[%emt 0:00:00] Threatens to win with ...Nd3+.} 32. Re3 {[%emt 0:01:57] Inhibits Nd3+.} Bd7 {[%emt 0:01:12]} 33. Rae1 {[%emt 0:01:08]} Rcd8 {[%emt 0:01:18]} 34. a5 {[%emt 0:03:06]} Rxe3 {[%emt 0:04:44]} 35. Kxe3 {[%emt 0:00:31] [#]} Re8+ $1 {[%emt 0:01:35]} 36. Kd2 {[%emt 0:00:27]} Rxe1 {[%emt 0:01:16]} 37. Kxe1 {[%emt 0:00:05] [#]} Nd3+ {[%emt 0:02:36]} (37... Nb7 $1 $19 38. b4 Nd6) 38. Ke2 {[%emt 0:00:15]} (38. Kd2 $17 Nf4 39. g4) 38... Nb4 {[%emt 0:00:41]} 39. Kd2 {[%emt 0:00:28]} Nc6 {[%emt 0:02:46]} 40. Kc3 {[%emt 0:02:14]} (40. Nxc6 $17 {only move.} Bxc6 41. Ke3) 40... Nxa5 $19 {[%emt 0:02:55]} 41. Kb4 {[%emt 0:30:08]} Nb7 {[%emt 0:32:09]} 42. c5 {[%emt 0:00:49]} a5+ {[%emt 0:00:37]} 43. Kc4 {[%emt 0:00:28] Black must now prevent c6.} a4 {[%emt 0:05:11]} (43... Nd8 $19 {Strongly threatening ...Ke7.} 44. Ne2 Ke7) 44. c6 $2 {[%emt 0:00:00][%mdl 8192] White does not recover from this.} (44. b4 $17) 44... Na5+ {[%emt 0:00:00]} 45. Kb4 {[%emt 0:00:00]} (45. Kc3 $142 Nxc6 46. Nc2) 45... Nxc6+ {[%emt 0:00:00]} 46. Nxc6 {[%emt 0:00:00]} axb3 {[%emt 0:00:00] Black mates.} 47. Kxb3 {[%emt 0:00:00]} Bxc6 {[%emt 0:00:00] KB-K3P} 48. Kb4 {[%emt 0:00:00]} f5 {[%emt 0:00:00]} 49. h4 {[%emt 0:00:00]} Kf7 {[%emt 0:00:00]} 50. Kc5 {[%emt 0:00:00]} Ba8 {[%emt 0:00:00]} 51. Kd4 {[%emt 0:00:00]} Kf6 {[%emt 0:00:00]} 52. Ke3 {[%emt 0:00:00]} h5 {[%emt 0:00:00]} 53. Kf4 {[%emt 0:03:00]} Bd5 {[%emt 0:00:00]} 54. g3 {[%emt 0:00:35]} g6 {[%emt 0:00:00]} 55. Ke3 {[%emt 0:00:17]} g5 {[%emt 0:00:00]} 56. f4 {[%emt 0:00:50]} gxh4 {[%emt 0:00:00]} 57. gxh4 {[%emt 0:00:07]} Ke6 {[%emt 0:00:00]} 58. Kd3 {[%emt 0:00:38]} Kd6 {[%emt 0:00:00]} 59. Kd4 {[%emt 0:01:09]} Be6 {[%emt 0:23:53] Weighted Error Value: White=0.56/Black=0.16 (very precise)} 0-1

[Event "44th Chess Olympiad Women 2022"]
[Site "Chennai"]
[Date "2022.08.07"]
[Round "9.43"]
[White "Cooke, Suzie G."]
[Black "Miller, Rachel"]
[Result "1-0"]
[ECO "D02"]
[WhiteElo "1936"]
[BlackElo "1961"]
[Annotator "TA"]
[PlyCount "95"]
[EventDate "2022.07.29"]
[EventType "team-tourn"]
[EventCountry "IND"]
[SourceTitle "playchess.com"]
[Source "ChessBase"]
[SourceQuality "1"]
[WhiteTeam "Scotland"]
[BlackTeam "Jamaica"]
[WhiteTeamCountry "SCO"]
[BlackTeamCountry "JAM"]
[TimeControl "40/5400+30:1800+30"]

{[%evp 9,95,0,0,0,12,0,0,-24,16,0,0,0,0,-5,0,0,25,15,50,59,128,137,121,120,129,115,130,120,117,139,167,178,217,219,230,216,222,227,275,291,435,421,400,348,29955,29956,29974,29974,29964,572,29940,29944,29941,29947,29956,404,29958,29961,29963,29964,29963,29963,29966,29968,29967,29968,29968,29969,29976,29977,29977,29977,29977,29976,29976,0,29976,29977,29977,29978,29977,29978,29987,29988,29988,29989,29989,29990]} 1. d4 {[%emt 0:00:03]} d5 {[%emt 0:00:18]} 2. Bf4 {[%emt 0:00:08]} c5 {[%emt 0:00:17]} 3. e3 {[%emt 0:00:28]} Nc6 {[%emt 0:00:23]} 4. Nf3 {[%emt 0:02:25]} Nf6 {[%emt 0:01:00]} 5. Nbd2 {[%emt 0:00:38]} Qb6 {[%emt 0:00:59][%csl LRb2,LRd4][%cal Rc5d4]} 6. dxc5 {[%emt 0:01:14] D02: 1 d4 d5 2 Nf3 sidelines, including 2...Nf6 3 g3 and 2...Nf6 3 Bf4.} Qxb2 {[%emt 0:00:30]} 7. Rb1 {[%emt 0:00:39]} Qc3 {[%emt 0:00:26]} 8. Bb5 {[%emt 0:00:55] The position is equal.} g6 {[%emt 0:00:26] is recently more successful than 8...e6.} (8... e6 $5 {[%cal Rf8c5]}) 9. O-O {[%emt 0:02:08]} Bg7 $1 {[%emt 0:04:22]} 10. Nb3 {[%emt 0:04:18][%cal Oe3e4] [#] Black must now prevent e4!} O-O {[%emt 0:02:37]} 11. Nfd4 {[%emt 0:21:11]} Bd7 {[%emt 0:10:24] [#]} 12. Bd3 $146 {[%emt 0:12:32]} ({Predecessor:} 12. Ne2 Qb4 13. a4 Bf5 14. c3 Qe4 15. Rb2 Qe6 16. Nbd4 Qc8 17. Nxf5 Qxf5 18. Bd3 Qc8 19. Qb3 Nd7 20. Qxd5 e6 21. Qf3 Nce5 22. Bxe5 Nxe5 23. Qxb7 Nxd3 {0-1 (23) Kamsky,G (2661)-Grischuk,A (2742) Chess.com INT 2022}) 12... Nxd4 {[%emt 0:12:52]} 13. exd4 {[%emt 0:00:19] Hoping for Bd2.} Ne4 {[%emt 0:00:26]} 14. Re1 $36 {[%emt 0:03:10][%mdl 2048] [#] f3 is the strong threat. Black is under pressure.} e5 {[%emt 0:43:03] Black is on the road to losing.} (14... Qb4 $1 $14) 15. dxe5 $16 {[%emt 0:09:39]} ({Of course not} 15. Bxe4 $6 dxe4 16. Re3 Qc4 17. Bxe5 Bxe5 18. dxe5 Bc6 $14) 15... Ba4 {[%emt 0:06:28]} 16. Bxe4 {[%emt 0:11:53]} dxe4 {[%emt 0:00:40]} 17. Rxe4 {[%emt 0:00:38]} Bxb3 {[%emt 0:00:10]} 18. Rxb3 {[%emt 0:02:19]} Qxc5 {[%emt 0:00:30]} 19. Rxb7 {[%emt 0:01:47] White is more active.} Rfd8 {[%emt 0:01:45]} 20. Qb1 {[%emt 0:03:11]} Rac8 {[%emt 0:05:49]} 21. h4 {[%emt 0:02:16] aiming for e6.} Qxc2 {[%emt 0:03:21]} 22. Qxc2 {[%emt 0:00:13]} Rxc2 {[%emt 0:00:09]} 23. Rxa7 {[%emt 0:00:36]} h6 {[%emt 0:01:09]} 24. e6 {[%emt 0:03:35]} fxe6 {[%emt 0:01:09]} (24... f5 $142) 25. Rxe6 $18 {[%emt 0:00:09]} g5 {[%emt 0:02:51]} 26. hxg5 {[%emt 0:02:12]} Rd1+ $2 {[%emt 0:00:13]} (26... hxg5 $18 27. Rg6 gxf4 28. Rgxg7+ Kh8) 27. Kh2 {[%emt 0:00:20]} Rxf2 {[%emt 0:00:17]} 28. gxh6 {[%emt 0:04:13]} Rxf4 {[%emt 0:00:22]} 29. hxg7 {[%emt 0:00:23] KRR-KRR} (29. Rxg7+ $142 Kf8 30. Rc7 Rd3 31. h7 Rh4+ 32. Kg1 Rd1+ 33. Kf2 Rd2+ 34. Kg3) 29... Rf7 {[%emt 0:01:08]} 30. Ree7 {[%emt 0:00:54]} Rxe7 {[%emt 0:00:47]} 31. Rxe7 {[%emt 0:00:04] KR-KR} Rd3 {[%emt 0:00:10]} 32. a4 {[%emt 0:00:24]} (32. Ra7 $142 Rd6 33. a4 Rh6+ 34. Kg1 Rh4 35. a5 Rh6 36. Kf2 Rh5 37. Kg3) 32... Rd5 {[%emt 0:00:19]} (32... Rd6 $18 33. Ra7 Rd3 34. Ra8+ Kxg7) 33. Ra7 {[%emt 0:00:09]} Rh5+ {[%emt 0:00:21]} 34. Kg1 {[%emt 0:00:21]} Rf5 {[%emt 0:00:24]} 35. a5 {[%emt 0:00:09][%cal Ba4a5,Ba5a6][%mdl 32]} Rb5 {[%emt 0:00:32]} 36. a6 {[%emt 0:00:13]} Ra5 {[%emt 0:00:06]} 37. Kh2 {[%emt 0:00:15]} Ra3 {[%emt 0:00:06]} 38. g3 {[%emt 0:00:23]} Kh7 {[%emt 0:00:19]} 39. Kh3 {[%emt 0:00:13]} Kg8 {[%emt 0:00:19]} 40. Kg4 {[%emt 0:01:32]} Ra5 {[%emt 0:00:06]} 41. Kf4 {[%emt 0:30:52]} Kh7 {[%emt 0:30:07]} 42. Kg4 {[%emt 0:00:37]} Kg8 {[%emt 0:00:07]} 43. Kh4 {[%emt 0:03:02] White mates.} Kh7 {[%emt 0:00:12]} 44. g4 {[%emt 0:00:31][%cal Bg3g4,Bg4g5][%mdl 32]} Kg8 {[%emt 0:00:06]} 45. g5 {[%emt 0:00:22]} Rb5 {[%emt 0:00:54]} 46. Rb7 {[%emt 0:00:19]} Ra5 {[%emt 0:00:15]} 47. a7 {[%emt 0:00:04]} Ra1 {[%emt 0:00:25]} 48. Rb8+ {[%emt 0:00:08] Weighted Error Value: White=0.57/Black=0.64} 1-0

[Event "44th Chess Olympiad Women 2022"]
[Site "Chennai"]
[Date "2022.08.07"]
[Round "9.44"]
[White "Deng, Jing Xin Crystal"]
[Black "Almanzar Vasquez, Jeniffer Maria"]
[Result "1-0"]
[ECO "E16"]
[WhiteElo "1914"]
[BlackElo "1762"]
[Annotator "TA"]
[PlyCount "67"]
[EventDate "2022.07.29"]
[EventType "team-tourn"]
[EventCountry "IND"]
[SourceTitle "playchess.com"]
[Source "ChessBase"]
[SourceQuality "1"]
[WhiteTeam "Hong Kong"]
[BlackTeam "Dominican Republic"]
[WhiteTeamCountry "HKG"]
[BlackTeamCountry "DOM"]
[TimeControl "40/5400+30:1800+30"]

{[%evp 15,67,16,14,0,0,0,2,0,6,4,4,0,11,18,13,11,15,16,40,25,27,15,20,-23,92,97,88,90,125,129,141,140,181,187,214,216,327,335,339,72,283,91,6475,1005,2292,1024,29994,29991,29991,29992,29992,29986,29996,29997]} 1. d4 {[%emt 0:00:03]} Nf6 {[%emt 0:00:17]} 2. c4 {[%emt 0:00:04]} e6 {[%emt 0:00:07]} 3. Nf3 {[%emt 0:00:02]} Bb4+ {[%emt 0:00:40]} 4. Bd2 {[%emt 0:00:06]} a5 {[%emt 0:01:24]} 5. g3 {[%emt 0:00:44]} b6 {[%emt 0:01:09]} 6. Bg2 {[%emt 0:00:05]} Bb7 {[%emt 0:00:06]} 7. O-O {[%emt 0:00:15]} O-O {[%emt 0:00:43]} 8. Nc3 {[%emt 0:06:42]} d6 {[%emt 0:00:37]} 9. Qc2 {[%emt 0:03:49] E16: Queen's Indian: 4 g3 Bb7 5 Bg2 Bb4+.} Bxc3 {[%emt 0:00:39]} 10. Bxc3 {[%emt 0:00:06][%cal Od4d5]} Be4 {[%emt 0:03:05] Prevents d5.} 11. Qd2 {[%emt 0:07:57] The position is equal.} Nbd7 {[%emt 0:05:00]} 12. Rac1 {[%emt 0:03:42]} h6 {[%emt 0:03:54]} 13. Rfd1 {[%emt 0:00:34]} Qb8 {[%emt 0:01:16] [#]} 14. Ne1 $146 {[%emt 0:03:25]} ({Predecessor:} 14. Bf1 Re8 15. Ne1 e5 16. f3 Bg6 17. e4 Qb7 18. Nc2 c5 19. dxc5 dxc5 20. Na3 {1-0 (33) Ivanchuk,V (2678)-Terry,R (2504) Europe Echecs INT 2021}) 14... Bxg2 {[%emt 0:00:49]} 15. Nxg2 {[%emt 0:00:10]} Ne4 {[%emt 0:04:23]} 16. Qd3 {[%emt 0:03:03]} Ndf6 {[%emt 0:06:32]} 17. f3 {[%emt 0:04:11]} Nxc3 {[%emt 0:01:22]} 18. Rxc3 {[%emt 0:01:38]} d5 {[%emt 0:02:22]} 19. e4 {[%emt 0:07:28][%cal Be2e4,Be4e5][%mdl 32]} c6 {[%emt 0:15:54]} (19... dxe4 $11 20. fxe4 c5) 20. cxd5 $16 {[%emt 0:01:10]} cxd5 {[%emt 0:02:26]} 21. e5 {[%emt 0:01:08]} Nd7 {[%emt 0:01:35] [#]} 22. Rdc1 $1 {[%emt 0:00:42] White is more active.} Ra7 {[%emt 0:00:54]} 23. f4 {[%emt 0:02:47][%cal Bf3f4,Bf4f5][%mdl 32]} b5 {[%emt 0:07:48]} 24. f5 {[%emt 0:01:42] aiming for fxe6.} b4 {[%emt 0:04:16]} 25. Rc6 {[%emt 0:00:19]} Re8 {[%emt 0:01:23]} (25... exf5 $142 26. Nf4 (26. Qxf5 Rb7 $18) 26... Nxe5 27. dxe5 Qxe5 28. Qxd5 Qxd5 29. Nxd5 Rd7) 26. Nf4 $18 {[%emt 0:15:26]} Nf8 {[%emt 0:01:48]} 27. Qf3 $2 {[%emt 0:07:10]} (27. f6 $18) 27... Qb5 $2 {[%emt 0:05:40]} (27... exf5 $16 {is a better defense.} 28. Qxd5 (28. Nxd5 Ne6 $11) 28... Rd7) 28. Qg4 $2 {[%emt 0:11:02]} (28. f6 $18 {fxg7 is the strong threat.} g6 29. Nd3) 28... Ra6 $2 {[%emt 0:11:51][%mdl 8192] [#]} (28... exf5 $16 29. Qxf5 Ne6 30. Nxe6 fxe6) 29. Rc7 {[%emt 0:03:17]} (29. Nh5 $142 $1 g6 30. Nf6+ Kg7 31. Nxe8+ Kg8 32. Nf6+ Kg7 33. Rc8 exf5 34. Qf4) 29... Qb6 {[%emt 0:00:34]} 30. R1c5 {[%emt 0:03:13]} (30. Nh5 $142 g5 31. Nf6+ Kh8 32. Qh5 Qxd4+ 33. Kh1 Qe4+ 34. Nxe4 exf5 35. Qxf7 Re7 36. Rxe7 Rg6 37. Qxf8+ Rg8 38. Qxh6#) 30... Qb8 {[%emt 0:02:01]} 31. Qh5 {[%emt 0:00:33] White mates.} Nd7 {[%emt 0:05:47]} 32. Rxd7 {[%emt 0:00:11]} Rf8 {[%emt 0:00:03]} 33. fxe6 {[%emt 0:00:47]} fxe6 {[%emt 0:02:56]} 34. Qg6 {[%emt 0:00:10][%csl LRe6,LRg7] Weighted Error Value: White=0.35/Black=0.52} 1-0